[Event "Canarian Championship Seniors 2022"]
[Site "Brena Baja La Palma"]
[Date "2022.06.02"]
[Round "3.3"]
[White "Machin Arbelo, Pedro Alexis"]
[Black "Iglesias Dominguez, Jacinto"]
[Result "1-0"]
[ECO "B30"]
[WhiteElo "1975"]
[BlackElo "1382"]
[Annotator "TA"]
[PlyCount "82"]
[EventDate "2022.06.01"]
[EventType "swiss"]
[EventCountry "ESP"]
[SourceTitle "playchess.com"]
[Source "ChessBase"]
[SourceQuality "1"]
[TimeControl "5400+30"]

{[%evp 9,82,0,-4,-2,24,20,29,18,39,9,96,112,137,128,240,236,252,145,159,152,133,92,204,200,204,190,189,25,19,22,37,52,53,26,17,21,42,6,20,0,0,0,0,-86,-84,-102,162,175,177,173,172,169,156,164,221,221,221,218,222,218,210,209,186,186,296,282,264,270,314,323,342,322,420,409,710]} 1. e4 {[%emt 0:00:15]} c5 {[%emt 0:00:11]} 2. Nf3 {[%emt 0:00:28]} Nc6 {[%emt 0:00:09]} 3. c3 {[%emt 0:00:14][%cal Bc2c3,Bc3d4][%mdl 32]} e6 {[%emt 0:00:42]} 4. Bb5 {[%emt 0:02:17]} a6 {[%emt 0:00:05]} 5. Ba4 {[%emt 0:01:32]} b5 {[%emt 0:00:02]} 6. Bc2 {[%emt 0:00:10] B30: Sicilian: 2...Nc6 3 Bb5, lines without ...g6.} d6 {[%emt 0:01:09]} 7. d4 {[%emt 0:03:43]} cxd4 {[%emt 0:01:24]} 8. cxd4 {[%emt 0:01:24] White has an edge.} d5 {[%emt 0:00:03]} 9. O-O {[%emt 0:02:19] [#]} Bb7 $146 {[%emt 0:00:28]} (9... dxe4 $11 10. Bxe4 Bb7) ({Predecessor:} 9... Nf6 10. Bg5 Be7 11. e5 Nd7 12. Bxe7 Nxe7 13. Nbd2 Ng6 14. a3 Bb7 15. Qe2 Nb6 {½-½ (53) Beauregard,P (1401)-Belanger,C (1331) Sherbrooke 2007}) 10. exd5 $1 $16 {[%emt 0:09:56]} Qxd5 {[%emt 0:01:36]} 11. Nc3 {[%emt 0:15:29]} Qd8 {[%emt 0:00:23]} (11... Qd6 $16) 12. d5 $18 {[%emt 0:03:51]} exd5 {[%emt 0:00:36]} 13. Nxd5 {[%emt 0:01:50]} (13. Re1+ $18 Be7 14. Nxd5) 13... Nce7 $16 {[%emt 0:01:25]} 14. Nc3 {[%emt 0:06:06] White is much more active.} Qxd1 {[%emt 0:00:28]} 15. Bxd1 {[%emt 0:08:02]} O-O-O {[%emt 0:01:03]} (15... Ng6 $16) 16. Ne5 $18 {[%emt 0:02:21]} Nh6 {[%emt 0:00:19]} 17. Bxh6 {[%emt 0:13:50]} gxh6 {[%emt 0:00:20]} 18. Bf3 $2 {[%emt 0:08:16]} (18. Nxf7 Rg8 19. g3 (19. Nxd8 Bxg2 20. Ne2 Bh3+ 21. Ng3 Bxf1 $14) 19... Rd4) ({White should try} 18. Bb3 $18) 18... Bxf3 $11 {[%emt 0:01:08]} 19. Nxf3 {[%emt 0:00:09]} Rg8 {[%emt 0:00:55]} 20. Rac1 {[%emt 0:02:48]} Kb7 {[%emt 0:01:13]} 21. Rfd1 {[%emt 0:00:53]} Bg7 {[%emt 0:00:16]} 22. Re1 {[%emt 0:01:03]} Nc6 {[%emt 0:00:54]} 23. Kf1 {[%emt 0:01:35]} Rd7 {[%emt 0:01:43]} 24. b3 {[%emt 0:03:19]} Rgd8 {[%emt 0:00:31]} 25. Ne4 {[%emt 0:01:54] Strongly threatening Nc5+.} Rd5 {[%emt 0:01:03]} 26. Nc5+ {[%emt 0:02:30]} (26. a4 $11 {remains equal.}) 26... Kb6 $1 $17 {[%emt 0:00:43]} 27. Nxa6 {[%emt 0:00:42][%cal Oc1c6] And now Rxc6+! would win.} Kb7 {[%emt 0:01:23][%mdl 8192] [#] Black cannot hold the game after this.} (27... Bf8 $1 $17 {Hoping for ...Ra8.} 28. b4 Ra8) 28. Rxc6 $1 $18 {[%emt 0:01:00][%mdl 512]} Kxc6 {[%emt 0:00:08]} 29. Nb4+ {[%emt 0:00:04] Pair of Knights!} Kc5 {[%emt 0:00:53]} 30. Nxd5 {[%emt 0:00:20]} Rxd5 {[%emt 0:00:14][%mdl 4096] Endgame KRB-KRN} 31. Re7 {[%emt 0:01:06]} Rd1+ {[%emt 0:00:46]} (31... Rf5 {keeps fighting.} 32. h3 Bf8) 32. Ke2 {[%emt 0:00:10]} Ra1 {[%emt 0:00:04]} 33. Rxf7 {[%emt 0:03:04]} Rxa2+ {[%emt 0:00:03] [#]} 34. Kd3 $1 {[%emt 0:00:19]} Ba1 {[%emt 0:01:00]} 35. Nd2 {[%emt 0:00:43]} ({Resist} 35. Rxh7 $6 Rxf2 36. Rxh6 Rxg2 $14) 35... Ra8 {[%emt 0:00:50]} 36. Rxh7 {[%emt 0:00:53]} Rg8 {[%emt 0:01:26]} (36... Rd8+ $142 37. Kc2 Rg8) 37. g3 {[%emt 0:00:41]} ({But not} 37. Rxh6 $6 Rxg2 38. Ne4+ Kb4 $18) 37... Bg7 {[%emt 0:01:39]} 38. f4 {[%emt 0:02:00]} Rd8+ {[%emt 0:02:23]} 39. Kc2 {[%emt 0:00:30]} Rd7 {[%emt 0:02:12]} 40. f5 {[%emt 0:00:26] Black must now prevent f6.} Kc6 {[%emt 0:01:20]} 41. f6 {[%emt 0:00:54]} Bxf6 {[%emt 0:00:01] Weighted Error Value: White=0.21 (precise) /Black=0.34} (41... Bf8 $142) 1-0

[Event "Canarian Championship Seniors 2022"]
[Site "Brena Baja La Palma"]
[Date "2022.06.02"]
[Round "3.4"]
[White "Camino Carrio, Nicanor"]
[Black "Gonzalez Ortega, Jose Miguel"]
[Result "0-1"]
[ECO "C41"]
[WhiteElo "1945"]
[BlackElo "1726"]
[Annotator "TA"]
[PlyCount "128"]
[EventDate "2022.06.01"]
[EventType "swiss"]
[EventCountry "ESP"]
[SourceTitle "playchess.com"]
[Source "ChessBase"]
[SourceQuality "1"]
[TimeControl "5400+30"]

{[%evp 15,128,7,51,21,39,0,30,8,33,22,19,-8,32,38,45,7,66,40,66,24,33,3,8,8,89,94,88,24,75,65,89,73,91,64,64,61,69,67,73,12,30,5,4,0,0,0,0,0,0,0,0,0,0,-10,0,0,0,0,0,0,0,-169,-200,-222,-207,-207,-207,-185,-178,-343,-336,-302,-300,-481,-345,-472,-458,-398,-375,-760,-675,-812,-804,-714,-689,-1083,-1137,-1095,-968,-1385,-1262,-1350,-1245,-1751,-1541,-3288,-2308,-29975,-233,-29975,0,-29974,-899,-29979,-29977,-29977,-29978,-29982,-29983,-29989,-29990,-29990,-29991,-29991,-29992]} 1. e4 {[%emt 0:00:09]} d6 {[%emt 0:00:19]} 2. d4 {[%emt 0:00:11]} e5 {[%emt 0:00:21]} 3. Nf3 {[%emt 0:00:20][%cal Bg1f3,Bf3d4,Bd4b3][%mdl 32]} exd4 {[%emt 0:00:38]} 4. Nxd4 {[%emt 0:00:33]} Nf6 {[%emt 0:00:14]} 5. Nc3 {[%emt 0:00:06]} Be7 {[%emt 0:00:12]} 6. Bc4 {[%emt 0:00:44]} O-O {[%emt 0:00:12]} 7. O-O {[%emt 0:00:05]} a6 {[%emt 0:01:19]} 8. a4 {[%emt 0:00:52]} c5 {[%emt 0:00:51]} (8... Nxe4 $5 9. Nxe4 d5 $11) 9. Nb3 {[%emt 0:01:43] [#] C41: Philidor Defence.} Re8 $146 {[%emt 0:00:36]} ({Predecessor:} 9... Nc6 10. f4 Be6 11. Bxe6 fxe6 12. Qf3 Nd4 13. Nxd4 cxd4 14. Ne2 e5 15. f5 d5 16. exd5 Nxd5 {1-0 (46) Villagomez Martinez,H (1289)-Loor Paredes,S (1225) Chess.com INT 2020}) 10. h3 {[%emt 0:02:10]} Nc6 {[%emt 0:00:27]} 11. Bf4 {[%emt 0:02:29] White has an edge.} Bf8 {[%emt 0:01:49]} 12. Re1 {[%emt 0:03:16]} Be6 {[%emt 0:01:16]} 13. Bf1 {[%emt 0:01:30]} Bxb3 {[%emt 0:01:38]} 14. cxb3 {[%emt 0:00:06]} Nd4 {[%emt 0:00:34]} 15. Bc4 {[%emt 0:01:24]} h6 {[%emt 0:02:55]} ({Better is} 15... b5 $11 16. axb5 axb5 17. Rxa8 (17. Nxb5 $2 Rxa1 18. Qxa1 Nc2 $19) 17... Qxa8 18. Bxb5 (18. Nxb5 Nxb5 19. Bxb5 Rxe4 $11) 18... Nxb5 19. Nxb5 Rxe4 20. Rxe4 (20. Bxd6 Qd5 $11) 20... Nxe4) 16. Qd3 {[%emt 0:03:46]} Qc7 {[%emt 0:04:34]} 17. Bh2 {[%emt 0:01:28]} Rab8 {[%emt 0:00:26]} 18. Nd5 {[%emt 0:04:34]} Nxd5 {[%emt 0:00:27]} 19. Bxd5 {[%emt 0:00:15][%cal Ob3b4]} b5 {[%emt 0:01:18]} (19... Nc6 $11 {remains equal.}) 20. axb5 {[%emt 0:00:18]} axb5 {[%emt 0:00:25]} 21. Bf4 {[%emt 0:00:13]} (21. b4 $16) 21... g5 {[%emt 0:03:04]} (21... Nc6 $11 {keeps the balance.}) 22. Bg3 {[%emt 0:01:09] A strong pair of Bishops.} Bg7 {[%emt 0:00:28]} 23. Ra2 {[%emt 0:01:49][%cal Ba1a2,Ba2a6,Ba6a7][%mdl 32]} Be5 {[%emt 0:02:59]} 24. Bxe5 {[%emt 0:01:27]} dxe5 {[%emt 0:00:30]} 25. Rea1 {[%emt 0:00:27]} Re7 {[%emt 0:00:26]} 26. Ra6 {[%emt 0:01:20]} Rb6 {[%emt 0:01:04]} 27. Kh2 {[%emt 0:02:54]} (27. h4 $16) 27... Qd6 {[%emt 0:00:38]} 28. Ra7 {[%emt 0:01:16]} Kg7 {[%emt 0:01:11]} 29. Qd1 {[%emt 0:01:15]} Qf6 {[%emt 0:01:30] White must now prevent ...Rxa7.} 30. Kg1 {[%emt 0:01:20]} Ne6 {[%emt 0:01:07]} 31. Bxe6 {[%emt 0:02:49]} Qxe6 {[%emt 0:00:15]} 32. Qc2 {[%emt 0:03:48]} Rxa7 {[%emt 0:00:50]} 33. Rxa7 $11 {[%emt 0:00:08][%mdl 4096] Endgame KQR-KQR} Qd6 {[%emt 0:01:07]} 34. Qc3 {[%emt 0:01:56]} Qd4 {[%emt 0:02:42]} 35. Rc7 {[%emt 0:03:56]} Ra6 {[%emt 0:05:28]} 36. Qxc5 {[%emt 0:04:48]} Ra1+ {[%emt 0:00:28]} 37. Kh2 {[%emt 0:00:08]} Qxe4 {[%emt 0:00:19]} 38. Qe3 {[%emt 0:10:40] White is now going downhill.} (38. Rc8) (38. Rc8 $11 {and White stays safe.}) 38... Qxe3 $19 {[%emt 0:00:44]} 39. fxe3 {[%emt 0:00:07] KR-KR} Re1 {[%emt 0:00:09]} 40. Rc5 {[%emt 0:00:52]} Rxe3 {[%emt 0:00:18]} (40... Kf6 41. Rxb5 Rxe3 42. Rb6+ Kg7) 41. Rxb5 {[%emt 0:00:06]} h5 {[%emt 0:01:31][%cal Bh6h5,Bh5h4][%mdl 32]} 42. Kg1 $2 {[%emt 0:00:51]} (42. g4 {is a better defense.}) 42... Kf6 {[%emt 0:00:35]} 43. Kf2 {[%emt 0:00:16]} Rd3 {[%emt 0:00:21]} 44. Ke2 $2 {[%emt 0:00:36] [#]} (44. b4 {was necessary.}) 44... Rg3 $1 {[%emt 0:00:15]} 45. Kf2 {[%emt 0:00:10] [#]} h4 {[%emt 0:00:11]} 46. Rb7 {[%emt 0:00:28]} Ke6 {[%emt 0:00:21]} 47. Rb4 $2 {[%emt 0:02:39]} (47. b4 Rb3 48. Kf1) 47... f6 {[%emt 0:00:29][%cal Bf7f6,Bf6f5][%mdl 32]} 48. Rb6+ {[%emt 0:01:14]} Kf5 {[%emt 0:00:12]} 49. Kf1 {[%emt 0:00:21]} e4 {[%emt 0:00:54] And now ...Ke5 would win.} 50. Kf2 {[%emt 0:00:20]} Ke5 {[%emt 0:00:13]} 51. b4 {[%emt 0:00:23]} f5 {[%emt 0:00:08] aiming for ...Rb3.} 52. Rg6 {[%emt 0:00:51]} Kf4 {[%emt 0:00:15] ...Rb3 is the strong threat.} 53. b5 {[%emt 0:01:08]} Rb3 {[%emt 0:00:17][%csl LRb2,LRb5]} 54. b6 {[%emt 0:00:13]} Rxb2+ {[%emt 0:00:14]} 55. Kg1 {[%emt 0:00:05]} e3 {[%emt 0:00:10] ( -> ...Rb1+)} 56. Re6 {[%emt 0:00:28]} Rb1+ {[%emt 0:01:29]} 57. Kh2 {[%emt 0:00:09]} Rb2 {[%emt 0:00:36]} (57... g4 58. hxg4 fxg4 59. g3+ hxg3+ 60. Kg2 Rb2+ 61. Kg1 g2 62. b7 Rxb7 63. Kxg2 Rb2+ 64. Kf1 g3 65. Ra6 g2+ 66. Kg1 e2 67. Ra1 Ke3 68. Ra3+ Kd2 69. Kh2 e1=Q 70. Kxg2 Ke2 71. Ra4 Qf2+ 72. Kh3 Rb3+ 73. Kg4 Rg3+ 74. Kh5 Qf5+ 75. Kh6 Qg6#) 58. Kg1 {[%emt 0:00:12]} Rb3 {[%emt 0:00:26]} (58... g4 $142 59. hxg4 Rb1+ 60. Kh2 fxg4 61. g3+ hxg3+ 62. Kg2 Rb2+ 63. Kg1 g2 64. b7 Rxb7 65. Kxg2 Rb2+ 66. Kf1 g3 67. Rf6+ Kg5 68. Rf8 Rf2+ 69. Rxf2 exf2 70. Ke2 Kf4 71. Kf1 Ke3 72. Kg2 Ke2 73. Kxg3 f1=Q 74. Kg4 Qf6 75. Kh5 Qg7 76. Kh4 Qg6 77. Kh3 Kf3 78. Kh4 Qh6#) 59. Kh2 {[%emt 0:00:40]} g4 {[%emt 0:00:30] Black mates.} 60. hxg4 {[%emt 0:00:57]} fxg4 {[%emt 0:00:24]} 61. Rf6+ {[%emt 0:00:43]} Ke5 {[%emt 0:00:35]} 62. Rh6 {[%emt 0:01:05]} e2 {[%emt 0:00:26]} 63. Rh8 {[%emt 0:00:11]} Rxb6 {[%emt 0:00:12]} 64. Re8+ {[%emt 0:00:10]} Re6 {[%emt 0:00:10] Weighted Error Value: White=0.86/Black=0.33} 0-1

[Event "Canarian Championship Seniors 2022"]
[Site "Brena Baja La Palma"]
[Date "2022.06.03"]
[Round "4.1"]
[White "Martin Luis, Cesar"]
[Black "Martin Rodriguez, Jose Carlos"]
[Result "1/2-1/2"]
[ECO "E97"]
[WhiteElo "2049"]
[BlackElo "1703"]
[Annotator "TA"]
[PlyCount "46"]
[EventDate "2022.06.01"]
[EventType "swiss"]
[EventCountry "ESP"]
[SourceTitle "playchess.com"]
[Source "ChessBase"]
[SourceQuality "1"]
[TimeControl "5400+30"]

{[%evp 20,46,102,78,95,63,61,54,75,62,75,70,94,104,135,134,135,122,122,72,77,86,97,97,130,90,147,95,97]} 1. d4 {[%emt 0:00:13]} Nf6 {[%emt 0:00:05]} 2. c4 {[%emt 0:00:37]} d6 {[%emt 0:01:34]} 3. Nc3 {[%emt 0:00:32]} g6 {[%emt 0:00:08]} 4. Nf3 {[%emt 0:02:02]} Bg7 {[%emt 0:00:07]} 5. e4 {[%emt 0:01:22]} O-O {[%emt 0:01:39]} 6. Be2 {[%emt 0:00:08]} Nc6 {[%emt 0:00:06]} 7. Be3 {[%emt 0:01:29]} Bg4 {[%emt 0:00:10]} (7... Ng4) 8. O-O {[%emt 0:05:46]} Bxf3 {[%emt 0:00:33]} 9. Bxf3 {[%emt 0:00:03]} e5 {[%emt 0:00:05]} 10. d5 {[%emt 0:01:26]} Ne7 {[%emt 0:00:08]} 11. c5 {[%emt 0:03:06]} Ne8 {[%emt 0:00:39] E97: King's Indian: Classical Main Line (6...e5 7 0-0 Nc6): 8 Be3 and 8 d5 Ne7, not 9 Ne1.} 12. cxd6 {[%emt 0:13:06] White is more active.} (12. Qb3) 12... Nxd6 {[%emt 0:01:00]} 13. Be2 {[%emt 0:00:24] [#]} a6 $146 {[%emt 0:00:40] White is slightly better.} ({Predecessor:} 13... f5 14. f3 Kh8 15. Qc2 Rf7 16. Rac1 Nec8 17. Nb5 Nxb5 18. Bxb5 Nd6 19. Bd3 Qh4 {1-0 (47) Komnenic,B (2238)-Stojanovic,I (2234) Serbia 2006}) 14. Rc1 {[%emt 0:00:46]} f5 {[%emt 0:00:13]} 15. f3 {[%emt 0:00:08]} Qd7 {[%emt 0:09:58]} 16. Qc2 {[%emt 0:17:07]} b6 {[%emt 0:07:01]} 17. a4 {[%emt 0:04:54]} Rfc8 {[%emt 0:04:52]} 18. Rfd1 {[%emt 0:03:07]} Kh8 {[%emt 0:03:14]} 19. b3 {[%emt 0:15:01]} (19. Bd3 $142) 19... Ng8 $16 {[%emt 0:00:09]} 20. Bd3 {[%emt 0:01:55]} Nf6 {[%emt 0:03:10]} 21. Qe2 {[%emt 0:00:34]} a5 {[%emt 0:00:55]} 22. h3 {[%emt 0:03:48]} Nh5 {[%emt 0:02:21]} (22... Bf8 $142) 23. Ba6 {[%emt 0:00:42]} (23. Nb5 $142) 23... Rf8 {[%emt 0:00:10] Weighted Error Value: White=0.16 (very precise) /Black=0.17 (very precise)} 1/2-1/2

[Event "Canarian Championship Seniors 2022"]
[Site "Brena Baja La Palma"]
[Date "2022.06.03"]
[Round "4.2"]
[White "Perez Aleman, Pedro Tomas"]
[Black "Gonzalez Ortega, Jose Miguel"]
[Result "0-1"]
[ECO "A33"]
[WhiteElo "2047"]
[BlackElo "1726"]
[Annotator "TA"]
[PlyCount "124"]
[EventDate "2022.06.01"]
[EventType "swiss"]
[EventCountry "ESP"]
[SourceTitle "playchess.com"]
[Source "ChessBase"]
[SourceQuality "1"]
[TimeControl "5400+30"]

{[%evp 18,124,0,0,9,-12,-7,-7,0,-18,0,-26,28,-11,45,30,60,57,56,64,81,13,81,80,64,66,83,81,99,89,86,78,78,77,114,85,85,57,64,57,54,54,54,54,45,53,57,22,24,17,17,0,17,17,17,45,50,50,50,52,52,52,54,54,123,112,135,123,134,0,113,97,91,-8,-8,-11,108,108,97,83,82,83,83,85,90,92,99,100,100,-752,-656,-1093,-1080,-1298,-1198,-1404,-1287,-5501,-5206,-5206,-5206,-5202,-5169,-29981,-29982,-29982,-29982,-29982,-29982]} 1. Nf3 {[%emt 0:05:12]} Nf6 {[%emt 0:01:16]} 2. c4 {[%emt 0:02:20]} c5 {[%emt 0:00:35]} 3. d4 {[%emt 0:00:12]} cxd4 {[%emt 0:00:13]} 4. Nxd4 {[%emt 0:00:01]} Nc6 {[%emt 0:00:09]} 5. Nc3 {[%emt 0:00:32]} e6 {[%emt 0:02:24]} 6. Ndb5 {[%emt 0:03:50]} d6 {[%emt 0:00:31]} 7. Bf4 {[%emt 0:01:11]} e5 {[%emt 0:01:21]} 8. Bg5 {[%emt 0:00:20]} a6 {[%emt 0:00:19]} 9. Bxf6 {[%emt 0:00:33]} gxf6 {[%emt 0:00:08]} 10. Na3 {[%emt 0:00:17]} Be6 {[%emt 0:00:29] A33: Symmetrical English: 2 Nf3 Nf6 3 d4 cxd4 4 Nxd4 e6 5 Nc3 Nc6.} 11. g3 {[%emt 0:01:29]} h5 {[%emt 0:01:07]} 12. h4 {[%emt 0:02:22]} f5 {[%emt 0:00:43] The position is equal.} 13. e3 {[%emt 0:04:26] [#]} Bg7 $146 {[%emt 0:00:58][%cal Of5f4]} ({Predecessor:} 13... Qb6 14. Qc2 O-O-O 15. Bh3 Bh6 16. Bxf5 Bxe3 17. Bxe6+ fxe6 18. fxe3 Qxe3+ 19. Qe2 Qxg3+ 20. Qf2 Qd3 {1-0 (66) Vivas Zamora,F (2344)-Nazaretyan,T (2316) Chess.com INT 2021}) 14. Be2 {[%emt 0:02:16]} e4 {[%emt 0:02:34]} (14... f4) (14... f4 $142) 15. Nc2 {[%emt 0:12:01]} Ke7 {[%emt 0:01:37]} ({Better is} 15... Rc8 $11) 16. O-O {[%emt 0:05:38]} Bxc3 {[%emt 0:02:04]} 17. bxc3 {[%emt 0:00:08]} Ne5 {[%emt 0:00:25]} 18. Rb1 {[%emt 0:00:23][%cal Ba1b1,Bb1b6,Bb6b2][%mdl 32]} Qc7 {[%emt 0:01:03]} 19. Nb4 {[%emt 0:00:23]} (19. Nd4 $16) 19... Rab8 {[%emt 0:13:35]} (19... Bxc4 $2 20. Bxc4 Qxc4 21. Nd5+ Ke6 22. Nf4+ Kd7 23. Rxb7+ (23. Rb6 Rh6 $16) 23... Kc8 24. Rb4 $18) ({Less strong is} 19... Nxc4 20. Nd5+ Bxd5 21. Qxd5 $16) (19... Qa5 $11 {keeps the balance.}) 20. Nd5+ $16 {[%emt 0:01:39]} Bxd5 {[%emt 0:00:14]} 21. Qxd5 {[%emt 0:00:10]} Qc6 {[%emt 0:00:45]} 22. Qd4 {[%emt 0:00:53]} Qc5 {[%emt 0:00:48]} 23. Rb6 {[%emt 0:02:38]} Nd7 {[%emt 0:04:33]} 24. Rb2 {[%emt 0:01:15]} Qe5 {[%emt 0:02:40]} 25. Rd1 {[%emt 0:02:37]} Nc5 {[%emt 0:01:17]} 26. Rbd2 {[%emt 0:00:31]} Rbd8 {[%emt 0:02:04]} 27. Qxe5+ {[%emt 0:00:37]} (27. Kg2 {is interesting.} Qe6 28. Rb2 Rh6 29. Qd2) 27... dxe5 {[%emt 0:00:12]} 28. Rxd8 {[%emt 0:00:04]} Rxd8 {[%emt 0:00:10]} 29. Rxd8 {[%emt 0:00:05]} Kxd8 {[%emt 0:00:11]} 30. Bxh5 {[%emt 0:00:02][%mdl 4096] Endgame KB-KN} Ke7 {[%emt 0:00:14]} 31. Bd1 {[%emt 0:02:16] Against Na4} Nd3 {[%emt 0:00:11]} 32. Kg2 {[%emt 0:07:34]} b6 {[%emt 0:00:59]} 33. f3 {[%emt 0:02:30]} exf3+ {[%emt 0:01:07]} 34. Kxf3 {[%emt 0:00:20]} e4+ {[%emt 0:00:26]} 35. Kg2 {[%emt 0:02:38]} Ne5 {[%emt 0:01:37]} 36. Be2 {[%emt 0:00:23][%cal Oc4c5]} a5 $1 {[%emt 0:00:14]} 37. Kf2 {[%emt 0:05:31]} Kf6 {[%emt 0:00:55]} 38. Ke1 {[%emt 0:00:23]} Ke6 {[%emt 0:01:23]} 39. Kd2 {[%emt 0:00:29]} f6 {[%emt 0:01:13]} 40. Kc2 {[%emt 0:00:44]} Kd6 {[%emt 0:00:39]} (40... Ng4 $14) 41. Kb3 {[%emt 0:00:32]} Nf7 {[%emt 0:01:30]} 42. Bf1 {[%emt 0:02:14]} Nh6 {[%emt 0:00:20]} 43. Be2 {[%emt 0:02:41]} (43. c5+ $16 Kxc5 44. Be2) 43... Kc6 {[%emt 0:00:26]} (43... Nf7 $1 $11) 44. Bh5 {[%emt 0:00:25]} Kd6 {[%emt 0:00:34]} 45. Be8 {[%emt 0:01:38]} ({White should play} 45. c5+ $16 Kxc5 46. Bg6) 45... Ng4 $11 {[%emt 0:00:48]} 46. h5 {[%emt 0:00:19]} Kc5 {[%emt 0:00:34]} (46... Nxe3 $2 47. h6 Ke7 48. h7 Kxe8 49. h8=Q+ $18) (46... Ke7 $1 $11 47. Bb5 Nxe3) 47. Bd7 $16 {[%emt 0:04:52]} Nh6 {[%emt 0:00:10]} 48. Be6 {[%emt 0:00:26]} Kd6 {[%emt 0:00:26]} 49. Bd5 {[%emt 0:00:25]} Kc5 {[%emt 0:00:51]} 50. Ka4 {[%emt 0:00:48]} Ng4 {[%emt 0:01:06]} 51. Bf7 {[%emt 0:00:58]} Nh6 {[%emt 0:00:13]} (51... Nxe3 $2 52. h6 Kd6 53. h7 $18) 52. Be6 {[%emt 0:00:06]} Kd6 {[%emt 0:00:25]} 53. Kb5 $2 {[%emt 0:00:17][%mdl 8192] White does not recover from this.} Kxe6 $19 {[%emt 0:00:29]} 54. Kxb6 {[%emt 0:00:01] [#] Hoping for c5. KN-KP} Ng4 {[%emt 0:00:40]} 55. c5 {[%emt 0:04:07]} Nxe3 {[%emt 0:00:14]} 56. h6 {[%emt 0:00:03]} Kf7 {[%emt 0:00:42] And now ...Nd5+ would win.} 57. c6 {[%emt 0:00:05]} Nd5+ {[%emt 0:00:31]} 58. Kc5 {[%emt 0:01:12]} Ne7 {[%emt 0:04:54] [#] Strongly threatening ...e3.} 59. h7 {[%emt 0:00:42]} Kg7 {[%emt 0:00:21] ( -> ...e3)} 60. c7 {[%emt 0:00:04]} e3 {[%emt 0:00:36] Black mates.} 61. Kd6 {[%emt 0:00:00]} Nc8+ {[%emt 0:00:31]} 62. Kd7 {[%emt 0:00:20]} Na7 {[%emt 0:01:01] Weighted Error Value: White=0.70/Black=0.20 (precise)} 0-1

[Event "Canarian Championship Seniors 2022"]
[Site "Brena Baja La Palma"]
[Date "2022.06.03"]
[Round "4.3"]
[White "Gutierrez Perez, Jose"]
[Black "Machin Arbelo, Pedro Alexis"]
[Result "1-0"]
[ECO "E38"]
[WhiteElo "1918"]
[BlackElo "1975"]
[Annotator "TA"]
[PlyCount "79"]
[EventDate "2022.06.01"]
[EventType "swiss"]
[EventCountry "ESP"]
[SourceTitle "playchess.com"]
[Source "ChessBase"]
[SourceQuality "1"]
[TimeControl "5400+30"]

{[%evp 12,78,2,0,24,25,28,22,28,37,27,0,9,1,9,-30,0,0,21,0,-4,-14,0,0,0,0,47,39,73,46,44,41,27,20,8,0,52,45,104,16,16,14,15,6,26,12,18,9,20,22,21,14,63,43,44,-8,48,60,53,39,1153,1138,1334,1333,29984,29985,29990,29991,29999]} 1. d4 {[%emt 0:00:30] ChessBase II} Nf6 {[%emt 0:05:23]} 2. c4 {[%emt 0:00:00]} e6 {[%emt 0:00:26]} 3. Nc3 {[%emt 0:02:36]} Bb4 {[%emt 0:00:53]} 4. Qc2 {[%emt 0:02:14]} d5 {[%emt 0:01:35]} 5. e3 {[%emt 0:03:20]} O-O {[%emt 0:00:34]} 6. Nf3 {[%emt 0:04:04]} c5 {[%emt 0:01:58] 6...c5 is better than 6...b6.} 7. a3 {[%emt 0:01:04][%cal Ba2a3,Ba3b4][%mdl 32]} cxd4 {[%emt 0:00:51] E38: Nimzo-Indian: Classical: 4...c5.} (7... Bxc3+ $5 8. Qxc3 cxd4 9. exd4 dxc4 $11) 8. axb4 {[%emt 0:06:01]} dxc3 {[%emt 0:00:10]} 9. bxc3 {[%emt 0:00:16]} dxc4 {[%emt 0:02:32] The position is equal.} 10. Bxc4 {[%emt 0:00:19]} Qc7 {[%emt 0:00:23]} 11. Be2 {[%emt 0:04:34]} Nd5 {[%emt 0:06:51]} 12. Bb2 {[%emt 0:04:25] [#] Black must now prevent c4.} Nxb4 $146 {[%emt 0:07:33]} ({Predecessor:} 12... Nd7 13. Rc1 a6 14. Ng5 N5f6 15. O-O h6 16. Ne4 b6 17. Bf3 Bb7 18. Nxf6+ Nxf6 19. Bxb7 Qxb7 {½-½ (19) Janssen,L-Haensel,I Annaberg-Buchholz 1965 EXT 2004 [ChessBase II]}) 13. Qb3 {[%emt 0:04:08]} N4c6 {[%emt 0:16:28]} 14. O-O {[%emt 0:03:42]} Nd7 {[%emt 0:20:57]} 15. c4 {[%emt 0:05:03][%cal Oc4c5][%mdl 1024] White has compensation.} (15. Ba3 $5 {[%cal Ra3f8]}) 15... b6 {[%emt 0:01:53]} 16. Rfd1 {[%emt 0:04:31]} Nc5 {[%emt 0:03:07]} 17. Qc3 $40 {[%emt 0:01:09][%csl Gb2][%cal Rc3g7][%mdl 128] [#] Black needs to defend precisely.} f6 {[%emt 0:00:11]} 18. Nd4 {[%emt 0:00:45]} Nxd4 {[%emt 0:10:17]} (18... Bb7 $11) 19. exd4 $14 {[%emt 0:01:16]} Nd7 {[%emt 0:03:19]} 20. Rac1 {[%emt 0:04:56] White is more active.} Bb7 {[%emt 0:00:29]} 21. Qh3 {[%emt 0:00:20]} f5 {[%emt 0:07:50]} 22. d5 {[%emt 0:12:23]} Nc5 {[%emt 0:00:51]} 23. Qe3 {[%emt 0:05:29]} exd5 {[%emt 0:01:31]} (23... Rad8 $11) 24. cxd5 {[%emt 0:00:10] Threatens to win with d6.} Rae8 {[%emt 0:00:24]} (24... Rad8 $14) 25. Qd2 {[%emt 0:04:04]} (25. d6 $16 Rxe3 26. Bc4+ (26. dxc7 $2 {loses.} Rxe2 27. Ba3 Rc8 $19) 26... Qf7 27. Bxf7+ Rxf7 28. fxe3) 25... Qd6 $11 {[%emt 0:03:51]} 26. Bf3 {[%emt 0:01:37]} Re7 {[%emt 0:02:00] And now ...Nb3 would win.} 27. Ba3 {[%emt 0:01:33]} Rc8 {[%emt 0:00:45]} 28. Qg5 {[%emt 0:01:04]} Rf7 {[%emt 0:00:53]} 29. h4 {[%emt 0:04:26]} Qf6 {[%emt 0:00:30]} 30. Qf4 {[%emt 0:01:19]} Rd7 {[%emt 0:00:30]} 31. h5 {[%emt 0:03:09]} g5 {[%emt 0:00:21]} (31... h6 $11 {should be considered.}) 32. hxg6 {[%emt 0:00:48]} hxg6 {[%emt 0:00:06]} 33. g4 {[%emt 0:01:06]} ({Better is} 33. Bxc5 $14 bxc5 34. Qa4) 33... Rf7 {[%emt 0:01:05]} ({Black should try} 33... Qd6 $11 34. Qxd6 Rxd6) 34. g5 $14 {[%emt 0:01:29]} Qd8 {[%emt 0:00:07][%cal Oc5e4]} 35. Bb2 {[%emt 0:00:41]} Ne4 $2 {[%emt 0:00:44][%mdl 8192] Black cannot hold the game after this.} (35... Rh7 $14) 36. Bxe4 $18 {[%emt 0:02:48] This bishop pair is nice.} Rxc1 {[%emt 0:00:38]} 37. Rxc1 {[%emt 0:00:36]} fxe4 {[%emt 0:00:07]} 38. Qe5 {[%emt 0:00:19][%csl Gb2][%cal Re5h8] White mates.} Rh7 {[%emt 0:00:46] [#]} 39. Rc7 $3 {[%emt 0:07:17][%mdl 512]} Qxd5 {[%emt 0:00:38]} (39... Rxc7 40. Qh8+) 40. Qe8# {[%emt 0:00:30] Weighted Error Value: White=0.14 (very precise) /Black=0.40} 1-0